bitfinex/quotes_ETHUSD_20240610
["timestamp","ask_amount","ask_price","bid_price","bid_amount"]
[1717982329871,1.13238028,3692.3,3691.9,38.28430545]
[1717982332378,2.3434,3692.4,3691.9,38.28430545]
[1717982332379,3.47578028,3692.4,3691.9,38.28430545]
[1717982332732,0.03975007,3692.3,3691.9,38.28430545]
[1717982335334,0.03975007,3692.3,3692.0,2.4465]
[1717982335541,0.03975007,3692.3,3692.0,5.09680545]
[1717982335743,0.03975007,3692.3,3692.0,2.4465]
[1717982335975,0.03975007,3692.3,3692.1,35.634]
[1717982336667,1.13238028,3692.5,3692.1,35.634]
[1717982336870,0.0396964,3692.2,3692.1,35.634]
[1717982337057,1.13238028,3692.5,3692.1,35.634]
[1717982337375,0.03980967,3692.4,3692.1,35.634]
[1717982337570,0.03980967,3692.4,3692.2,2.65030545]
[1717982337778,1.13238028,3692.6,3692.2,2.65030545]
[1717982337984,0.03975304,3692.3,3692.1,0.634]
[1717982338137,1.13238028,3692.6,3692.2,35.0]
[1717982338654,0.03986631,3692.5,3692.2,35.0]
[1717982342083,1.13238028,3692.7,3692.2,35.0]
[1717982342259,0.03719005,3692.4,3692.3,2.17323414]
[1717982342448,1.13238028,3692.7,3692.3,2.17323414]
[1717982342650,1.13238028,3692.7,3692.1,0.634]
[1717982342854,0.03730331,3692.6,3692.2,35.0]
[1717982348289,2.21590728,3692.8,3692.2,35.0]
[1717982348587,0.03733074,3692.7,3692.2,35.0]
[1717982349651,0.03733074,3692.7,3692.3,0.634]
[1717982349854,0.03733074,3692.7,3692.5,0.634]
[1717982350055,1.13238028,3693.0,3692.6,1.35405]
[1717982350292,3.576484,3693.3,3692.9,0.634]
[1717982350756,1.083384,3693.3,3692.9,0.634]
[1717982350961,2.48612028,3693.5,3692.9,0.634]
[1717982351494,2.48612028,3693.5,3693.0,35.0]
[1717982351792,1.083345,3693.4,3693.0,35.0]
[1717982352661,2.48612028,3693.5,3693.0,35.0]
[1717982352860,1.35374,3693.5,3693.0,35.0]
[1717982353471,2.437045,3693.5,3693.0,35.0]
[1717982353726,0.03623607,3693.4,3693.0,35.0]
[1717982358808,0.03623607,3693.4,3692.6,1.35405]
[1717982358969,0.03623607,3693.4,3692.7,0.634]
[1717982359171,2.4473,3693.3,3692.7,0.446605]
[1717982359487,3.80113,3693.3,3692.6,1.35405]
[1717982359668,0.03603153,3693.2,3692.6,1.35405]
[1717982360070,3.80113,3693.3,3692.6,1.35405]
[1717982360466,1.35389,3693.1,3692.5,35.0]
[1717982360731,1.35395,3692.9,3692.5,35.0]
[1717982361067,0.03592706,3692.8,3692.5,35.0]
[1717982362313,1.35395,3692.9,3692.5,35.0]
[1717982363711,1.35395,3692.9,3692.3,1.98816]
[1717982363910,0.03607727,3692.8,3692.3,1.98816]
[1717982364120,0.03607727,3692.8,3692.4,35.0]
[1717982364409,1.35395,3692.9,3692.4,35.0]
[1717982366108,1.30395,3692.9,3692.4,35.0]
[1717982366314,1.30395,3692.9,3692.4,37.65030545]
[1717982374339,1.13091155,3693.1,3692.4,37.65030545]
[1717982374540,0.03629203,3693.0,3692.4,37.65030545]
[1717982377549,1.13091155,3693.1,3692.4,37.65030545]
[1717982378456,1.13091155,3693.1,3692.5,1.35408]
[1717982378655,4.97865155,3693.2,3692.6,2.65030545]
[1717982378950,4.97865155,3693.2,3692.5,4.29458]
[1717982378951,0.03635437,3693.1,3692.5,4.29458]
[1717982379261,0.03635437,3693.1,3692.7,35.0]
[1717982379628,3.84774,3693.2,3692.7,35.0]
[1717982380023,0.03635737,3693.1,3692.7,35.0]
[1717982380538,3.84774,3693.2,3692.7,35.0]
[1717982380718,0.03639926,3693.1,3692.7,35.0]
[1717982382652,0.03639926,3693.1,3692.5,3.66058]
[1717982382845,0.03639926,3693.1,3692.5,4.090038]
[1717982383250,0.03639926,3693.1,3692.6,35.0]
[1717982385674,0.03639926,3693.1,3692.5,4.090038]
[1717982385976,0.03639926,3693.1,3692.5,39.090038]
[1717982386279,1.16731081,3693.1,3692.5,39.090038]
[1717982386574,1.16731081,3693.1,3692.6,2.65030545]
[1717982388070,1.16731081,3693.1,3692.6,0.634]
[1717982388300,0.03639926,3693.1,3692.6,0.634]
[1717982388595,0.03639926,3693.1,3692.7,35.0]
[1717982391365,1.13091155,3693.3,3692.8,1.98797]
[1717982391559,0.03659159,3693.2,3692.9,2.65030545]
[1717982391895,1.13091155,3693.4,3692.8,1.35397]
[1717982392055,0.03650494,3693.1,3693.0,35.0]
[1717982392258,1.13091155,3693.4,3693.0,35.0]
[1717982392454,0.03652289,3693.1,3693.0,35.0]
[1717982392654,1.13091155,3693.4,3693.0,37.65030545]
[1717982392890,0.03652289,3693.1,3693.0,35.0]
[1717982393096,1.13091155,3693.4,3693.0,35.0]
[1717982393455,0.03663611,3693.3,3693.0,35.0]
[1717982398608,1.13091155,3693.4,3693.0,35.0]
[1717982398774,0.03674783,3693.2,3693.0,35.82135449]
[1717982399104,1.13091155,3693.4,3693.0,35.82135449]
[1717982399478,0.03680443,3693.3,3693.0,35.82135449]
[1717982400092,0.03680443,3693.3,3693.0,37.17523449]
[1717982400300,1.13091155,3693.5,3693.0,37.17523449]
[1717982400482,0.03569078,3693.2,3693.1,2.65030545]
[1717982400686,1.13091155,3693.5,3693.1,2.65030545]
[1717982400898,1.13091155,3693.5,3693.0,2.17523449]
[1717982401105,0.03580399,3693.4,3693.1,35.0]
[1717982402706,0.03580399,3693.4,3693.1,35.634]
[1717982403233,0.03574739,3693.3,3693.1,35.634]
[1717982403402,1.13091155,3693.6,3693.1,35.634]
[1717982403730,1.13091155,3693.6,3693.2,2.65030545]
[1717982403887,1.13091155,3693.7,3693.2,2.65030545]
[1717982404423,1.13091155,3693.7,3693.1,0.634]
[1717982404611,1.13091155,3693.7,3693.2,35.0]
[1717982406502,1.13091155,3693.7,3693.1,0.634]
[1717982406826,1.13091155,3693.7,3693.2,1.35382]
[1717982407031,1.13091155,3693.7,3693.2,36.35382]
[1717982407232,1.13091155,3693.7,3693.3,2.65030545]
[1717982407892,1.13091155,3693.8,3693.3,2.65030545]
[1717982409191,2.3558,3693.7,3693.3,2.65030545]
[1717982409392,3.48671155,3693.7,3693.2,1.35382]
[1717982411696,4.84039155,3693.7,3692.9,1.35394]
[1717982411898,3.44691155,3693.6,3692.9,1.35394]
[1717982412196,3.44691155,3693.6,3693.0,2.51065505]
[1717982413719,0.03597445,3693.5,3693.0,2.51065505]
[1717982415454,0.03597445,3693.5,3692.9,1.98794]
[1717982415603,0.03597445,3693.5,3693.1,35.0]
[1717982416323,0.03597445,3693.5,3692.9,1.98794]
[1717982416839,0.03597445,3693.5,3693.0,35.0]
[1717982417011,2.316,3693.6,3693.0,35.0]
[1717982417214,0.03597445,3693.5,3693.1,2.65030545]
[1717982417732,2.48459155,3693.7,3692.9,4.24024]
[1717982418048,2.48459155,3693.7,3693.0,35.0]
[1717982418213,0.03603105,3693.6,3693.0,35.0]
[1717982422198,2.4274,3693.5,3693.0,35.634]
[1717982422398,2.4274,3693.5,3693.1,2.65030545]
[1717982422936,2.4274,3693.5,3693.0,0.634]
[1717982423129,0.03596582,3693.4,3693.2,35.0]
[1717982423514,1.13091155,3693.6,3693.2,35.0]
[1717982423905,0.03602242,3693.5,3693.1,0.634]
[1717982424106,2.48459155,3693.7,3693.2,0.198794]
[1717982424314,0.03596582,3693.4,3693.2,0.198794]
[1717982424536,2.48459155,3693.7,3693.2,0.198794]
[1717982424741,0.03590922,3693.3,3693.2,0.198794]
[1717982424905,2.48459155,3693.7,3693.2,0.198794]
[1717982425106,0.03590922,3693.3,3693.2,0.198794]
[1717982425345,2.48459155,3693.7,3693.2,0.198794]
[1717982425517,0.03590922,3693.3,3693.2,0.198794]
[1717982425716,2.48459155,3693.7,3693.2,0.198794]
[1717982425914,0.03590922,3693.3,3693.1,35.634]
[1717982426223,0.03585261,3693.2,3693.1,35.634]
[1717982426644,2.48459155,3693.7,3693.1,35.634]
[1717982426849,0.03585261,3693.2,3693.1,35.634]
[1717982427144,2.48459155,3693.7,3693.1,37.65030545]
[1717982427508,0.03607902,3693.6,3693.1,37.65030545]
[1717982429144,1.16699057,3693.6,3693.1,37.65030545]
[1717982430544,0.03607902,3693.6,3693.1,37.65030545]
[1717982431336,1.16699057,3693.6,3693.1,37.65030545]
[1717982431641,1.16699057,3693.6,3693.2,0.57094511]
[1717982437224,1.13091155,3693.5,3693.2,0.57094511]
[1717982437737,0.0346635,3693.4,3693.2,0.57094511]
[1717982439651,1.13091155,3693.5,3693.2,0.57094511]
[1717982439825,0.03460689,3693.3,3693.2,0.57094511]
[1717982440153,1.13091155,3693.5,3693.2,1.20494511]
[1717982440367,1.13091155,3693.5,3693.2,0.634]
[1717982440545,0.0346635,3693.4,3693.2,0.634]
[1717982443736,0.0346635,3693.4,3693.1,3.76225]
[1717982444262,0.0346635,3693.4,3693.1,1.35385]
[1717982444651,2.2949,3693.3,3692.9,0.634]
[1717982444841,3.45938671,3693.3,3692.8,1.35396]
[1717982445042,3.45938671,3693.3,3692.9,35.0]
[1717982445276,3.42581155,3693.3,3692.8,1.79487142]
[1717982445461,0.03351855,3693.2,3692.8,1.35396]
[1717982445653,3.42581155,3693.3,3692.9,35.0]
[1717982445985,1.13091155,3693.2,3692.9,35.0]
[1717982446336,1.1644301,3693.2,3692.9,35.0]
[1717982449047,1.1644301,3693.2,3692.6,0.634]
[1717982449278,1.1644301,3693.2,3692.7,0.198809]
[1717982449594,1.1644301,3693.2,3692.8,35.0]
[1717982449885,3.42581155,3693.3,3692.8,35.0]
[1717982450052,0.03346194,3693.1,3692.8,35.0]
[1717982450566,3.42581155,3693.3,3692.8,35.0]
[1717982450953,0.03351855,3693.2,3692.8,35.0]
[1717982451264,0.03346194,3693.1,3692.8,35.0]
[1717982451470,3.42581155,3693.3,3692.8,35.0]
[1717982451666,0.03340533,3693.0,3692.8,35.0]
[1717982451868,1.13091155,3693.2,3692.8,35.0]
[1717982452068,0.03334871,3692.9,3692.8,35.0]
[1717982452291,3.42581155,3693.3,3692.8,35.0]
[1717982452477,0.03334871,3692.9,3692.8,35.0]
[1717982452655,3.42581155,3693.3,3692.8,35.0]
[1717982453064,0.03351855,3693.2,3692.8,35.0]
[1717982453397,3.42581155,3693.3,3692.8,35.0]
[1717982453565,0.03346194,3693.1,3692.8,35.0]
[1717982453766,0.03351855,3693.2,3692.8,35.0]
[1717982454096,0.03235124,3693.1,3692.8,35.0]
[1717982454399,3.42581155,3693.3,3692.8,35.0]
[1717982454771,0.03240785,3693.2,3692.8,35.0]
[1717982455205,3.42581155,3693.3,3692.8,35.0]
[1717982455366,0.03235124,3693.1,3692.8,35.0]
[1717982455686,3.42581155,3693.3,3692.8,35.0]
[1717982456065,0.03219522,3693.2,3692.8,35.0]
[1717982456265,3.42581155,3693.3,3692.8,35.0]
[1717982456578,0.03213861,3693.1,3692.8,35.0]
[1717982456778,0.03219522,3693.2,3692.8,35.0]
[1717982456981,3.42581155,3693.3,3692.8,35.0]
[1717982457283,0.03219522,3693.2,3692.8,35.0]
[1717982457485,3.42581155,3693.3,3692.8,35.0]
[1717982457678,0.03213861,3693.1,3692.8,35.0]
[1717982458014,3.42581155,3693.3,3692.8,35.0]
[1717982458475,0.03212327,3693.2,3692.8,35.0]
[1717982458874,3.42581155,3693.3,3692.8,35.0]
[1717982459201,0.03206666,3693.1,3692.8,35.0]
[1717982459401,0.03212327,3693.2,3692.8,35.0]
[1717982459582,3.42581155,3693.3,3692.8,35.0]
[1717982459766,0.03206666,3693.1,3692.8,35.0]
[1717982459967,0.03212327,3693.2,3692.8,35.0]
[1717982460405,3.42581155,3693.3,3692.8,35.0]
[1717982460580,0.03206666,3693.1,3692.8,35.0]
[1717982460781,0.03212327,3693.2,3692.8,35.0]
[1717982461006,3.42581155,3693.3,3692.8,35.0]
[1717982461196,0.03206666,3693.1,3692.8,35.0]
[1717982461399,0.03212327,3693.2,3692.8,35.0]
[1717982461570,1.13091155,3693.3,3692.8,35.0]
[1717982461893,0.03212327,3693.2,3692.8,35.0]
[1717982462092,1.13091155,3693.3,3692.8,35.0]
[1717982462400,0.03206666,3693.1,3692.8,35.0]
[1717982462607,0.03212327,3693.2,3692.8,35.0]
[1717982462770,1.13091155,3693.3,3692.8,35.0]
[1717982462972,0.03206666,3693.1,3692.8,35.0]
[1717982463171,0.03212327,3693.2,3692.8,35.0]
[1717982463372,1.13091155,3693.3,3692.8,35.0]
[1717982463669,0.03212327,3693.2,3692.8,35.0]
[1717982463877,1.13091155,3693.3,3692.8,35.0]
[1717982464074,0.03206666,3693.1,3692.8,35.0]
[1717982464471,1.13091155,3693.3,3692.8,35.0]
[1717982464884,0.03212327,3693.2,3692.8,35.0]
[1717982465086,1.13091155,3693.3,3692.8,35.0]
[1717982465375,0.03200976,3693.1,3692.8,35.0]
[1717982465588,0.03206637,3693.2,3692.9,2.08022632]
[1717982465776,0.03206637,3693.2,3692.8,2.4635]
[1717982465993,1.13091155,3693.3,3692.8,2.4635]
[1717982466312,0.03206637,3693.2,3693.0,35.0]
[1717982466607,1.13091155,3693.3,3693.0,35.0]
[1717982466996,0.03206637,3693.2,3693.0,35.0]
[1717982467508,1.13091155,3693.3,3693.0,35.0]
[1717982467706,1.13091155,3693.3,3693.0,35.94149881]
[1717982467906,0.03206637,3693.2,3693.0,35.94149881]
[1717982468210,1.13091155,3693.6,3693.0,35.94149881]
[1717982468431,1.13091155,3693.5,3693.0,35.94149881]
[1717982468594,1.16314774,3693.5,3693.1,2.65030545]
[1717982470878,1.16314774,3693.5,3693.0,0.94149881]
[1717982471078,1.16314774,3693.5,3692.9,1.98792]
[1717982471079,1.16314774,3693.5,3693.1,35.0]
[1717982472318,1.13091155,3693.5,3693.1,35.0]
[1717982472517,0.03082091,3693.4,3693.1,35.0]
[1717982474436,0.03082091,3693.4,3693.1,3.84225]
[1717982474638,1.13091155,3693.6,3693.1,3.84225]
[1717982474777,0.0307643,3693.3,3693.2,35.447625]
[1717982475129,1.13091155,3693.6,3693.2,35.447625]
[1717982475420,0.0307643,3693.3,3693.2,35.447625]
[1717982475718,1.13091155,3693.6,3693.2,35.447625]
[1717982476107,0.03087751,3693.5,3693.2,35.447625]
[1717982476402,0.03087751,3693.5,3693.3,2.65030545]
[1717982486399,0.03087751,3693.5,3693.2,0.447625]
[1717982487128,1.13091155,3693.6,3693.2,0.447625]
[1717982487631,0.03098544,3693.5,3693.2,0.447625]
[1717982490413,2.4504,3693.4,3693.1,1.35385]
[1717982490941,0.03087224,3693.3,3693.2,35.0]
[1717982491297,2.4504,3693.4,3693.2,35.0]
[1717982491737,0.03097718,3693.3,3693.2,35.0]
[1717982492145,2.4504,3693.4,3693.2,35.0]
[1717982492556,0.03097718,3693.3,3693.2,35.0]
[1717982493016,2.4504,3693.4,3693.2,35.0]
[1717982493337,0.03097718,3693.3,3693.2,35.0]
[1717982493643,0.03097718,3693.3,3692.6,2.3791]
[1717982493942,0.634,3692.9,3692.2,1.3542]
[1717982494100,1.76491155,3692.9,3692.1,35.0]
[1717982494306,1.13091155,3692.7,3692.1,35.0]
[1717982494807,1.13091155,3692.8,3692.1,35.634]
[1717982495010,1.13091155,3692.8,3692.2,2.65030545]
[1717982495511,1.35402,3692.7,3692.2,2.65030545]
[1717982497507,1.35402,3692.7,3692.1,0.634]
[1717982497825,0.03039795,3692.6,3692.2,35.0]
[1717982498219,1.35402,3692.7,3692.2,35.0]
[1717982499961,2.4549,3692.6,3692.2,35.0]
[1717982505547,0.02936724,3692.5,3692.2,35.0]
[1717982512351,1.38348724,3692.5,3692.2,35.0]
[1717982512739,1.35416,3692.3,3692.2,35.0]
[1717982512942,1.35427,3692.1,3691.4,2.2828]
[1717982513153,1.98827,3692.1,3691.2,1.35456]
[1717982513458,1.98838,3691.7,3690.9,2.7]
[1717982513860,0.02832326,3691.6,3690.8,3.77178]
[1717982514015,0.02832326,3691.6,3691.0,35.0]
[1717982514358,1.98838,3691.7,3691.0,35.0]
[1717982514567,1.98838,3691.7,3691.0,37.27943241]
[1717982516440,1.98838,3691.7,3691.0,2.27943241]
[1717982516644,2.3865,3691.3,3690.4,11.05253]
[1717982516857,2.3865,3691.3,3690.5,0.634]
[1717982517038,2.3865,3691.3,3690.5,35.634]
[1717982517256,2.3865,3691.3,3690.5,35.0]
[1717982517440,0.02798079,3691.2,3690.5,37.65030545]
[1717982517652,2.3865,3691.3,3690.5,37.65030545]
[1717982517985,2.3865,3691.3,3690.5,35.0]
[1717982517986,0.634,3691.1,3690.5,35.0]
[1717982518958,1.35458,3691.2,3690.5,35.0]
[1717982519134,1.35458,3691.2,3690.3,1.134]
[1717982519531,0.0275491,3691.1,3690.4,35.0]
[1717982519761,0.0275491,3691.1,3690.5,2.65030545]
[1717982519933,1.35458,3691.2,3690.5,2.65030545]
[1717982520135,1.35458,3691.2,3690.3,1.134]
[1717982520335,0.0275491,3691.1,3690.3,1.134]
[1717982520532,0.0275491,3691.1,3690.6,35.0]
[1717982520970,1.35458,3691.2,3690.6,35.0]
[1717982521599,1.35458,3691.2,3690.7,0.634]
[1717982521794,1.35458,3691.2,3690.8,2.65030545]
[1717982523972,1.35446,3691.6,3691.1,0.634]
[1717982524192,3.8213,3692.0,3691.3,0.634]
[1717982524344,3.8213,3692.0,3690.9,1.35468]
[1717982524345,0.02773682,3691.5,3690.9,1.35468]
[1717982524539,4.4553,3692.0,3691.1,0.634]
[1717982524784,0.02768015,3691.4,3691.1,0.634]
[1717982524958,4.4553,3692.0,3691.1,0.634]
[1717982525162,0.02762348,3691.3,3691.1,0.634]
[1717982525347,4.4553,3692.0,3691.2,35.0]
[1717982526627,4.4553,3692.0,3691.2,37.65030545]
[1717982529187,5.539049,3692.0,3691.2,37.65030545]
[1717982529642,1.35439,3691.7,3691.2,35.0]
[1717982530291,1.3545,3691.4,3690.5,1.3548]
[1717982530578,2.2729,3691.3,3690.5,1.9888]
[1717982530765,2.2729,3691.3,3690.6,35.24888]
[1717982530982,2.2729,3691.3,3690.6,35.88288]
[1717982531144,2.2729,3691.3,3690.6,35.24888]
[1717982531659,2.2729,3691.3,3690.7,0.634]
[1717982532367,0.02733254,3691.2,3690.8,35.0]
[1717982532771,2.2729,3691.3,3690.8,35.0]
[1717982534384,1.3545,3691.4,3690.8,35.0]
[1717982534556,1.3545,3691.4,3690.8,36.0706595]
[1717982534952,2.3324,3691.7,3691.0,0.634]
[1717982535183,1.35438,3691.8,3691.2,0.634]
[1717982535483,1.35438,3691.8,3690.9,2.3052]
[1717982535484,0.02753521,3691.6,3691.0,0.634]
[1717982535788,0.02747855,3691.5,3691.0,0.634]
[1717982535964,0.02747855,3691.5,3691.3,35.0]
[1717982536162,1.35438,3691.8,3691.3,35.0]
[1717982536555,0.02759187,3691.7,3691.3,35.0]
[1717982536993,1.35438,3691.8,3691.3,35.0]
[1717982537198,0.02757122,3691.6,3691.3,35.0]
[1717982537372,1.35438,3691.8,3691.3,35.0]
[1717982537900,0.02762788,3691.7,3691.3,36.17197825]
[1717982538102,2.3324,3692.0,3691.3,36.17197825]
[1717982538263,0.02777719,3691.9,3691.4,0.634]
[1717982538470,2.3324,3692.0,3691.4,0.634]
[1717982538987,0.02778619,3691.9,3691.4,0.634]
[1717982539189,1.35424,3692.1,3691.4,3.28430545]
[1717982539583,1.35424,3692.1,3691.4,0.634]
[1717982539781,0.02784284,3692.0,3691.4,0.634]
[1717982539990,0.02784284,3692.0,3691.5,35.0]
[1717982548286,0.02784284,3692.0,3691.4,3.0597]
[1717982551950,0.02784284,3692.0,3691.4,0.634]
[1717982552138,0.02784284,3692.0,3691.2,4.37793]
[1717982552316,0.02784284,3692.0,3691.3,0.437793]
[1717982555138,0.02784284,3692.0,3691.4,1.35449]
[1717982555466,0.02784284,3692.0,3691.4,1.98849]
[1717982565784,0.02784284,3692.0,3691.5,35.0]
[1717982580342,1.15875439,3692.0,3691.5,35.0]
[1717982580537,2.4774,3691.9,3691.5,35.0]
[1717982580854,0.02749403,3691.8,3691.5,35.0]
[1717982584853,1.15840558,3691.8,3691.5,35.0]
[1717982585045,0.02749403,3691.8,3691.5,35.0]
[1717982585383,1.13091155,3691.7,3691.5,35.0]
[1717982585675,1.15834892,3691.7,3691.5,35.0]
[1717982585979,0.02743737,3691.7,3691.5,35.0]
[1717982586481,0.02738071,3691.6,3691.5,35.0]
[1717982587047,1.13091155,3691.8,3691.5,35.0]
[1717982587248,0.02738071,3691.6,3691.5,35.0]
[1717982587576,1.13091155,3691.8,3691.5,35.0]
[1717982587882,0.02743737,3691.7,3691.5,35.0]
[1717982588183,0.02743737,3691.7,3691.1,1.9886]
[1717982588389,0.02743737,3691.7,3691.1,2.56092355]
[1717982588878,0.02743737,3691.7,3691.2,35.0]
[1717982589243,1.13091155,3691.8,3691.2,35.0]
[1717982589474,1.13091155,3691.7,3691.2,35.0]
[1717982589968,0.02734471,3691.6,3691.2,35.0]
[1717982590285,1.13091155,3691.7,3691.2,37.65030545]
[1717982590655,0.02734471,3691.6,3691.2,37.65030545]
[1717982590853,1.13091155,3691.8,3691.2,37.65030545]
[1717982591147,0.02728804,3691.5,3691.2,37.65030545]
[1717982591483,1.13091155,3691.7,3691.3,2.65030545]
[1717982591681,1.13091155,3691.8,3691.3,2.65030545]
[1717982591869,0.02734471,3691.6,3691.1,2.56092355]
[1717982592077,1.13091155,3691.8,3691.2,35.0]
[1717982592751,0.02740137,3691.7,3691.2,35.0]
[1717982593583,1.15831292,3691.7,3691.2,35.0]
[1717982594381,1.15831292,3691.7,3691.2,35.634]
[1717982594586,1.15831292,3691.7,3691.2,38.28430545]
[1717982595401,0.02740137,3691.7,3691.2,38.28430545]
[1717982598424,2.3962,3691.6,3691.2,35.0]
[1717982598973,0.02725205,3691.5,3691.2,35.0]
[1717982601478,2.3962,3691.6,3690.9,0.634]
[1717982601711,0.02719538,3691.4,3690.9,0.634]
[1717982601930,0.02725205,3691.5,3690.9,0.634]
[1717982602134,0.02713871,3691.3,3691.0,35.68169669]
[1717982602331,0.02719538,3691.4,3691.0,35.68169669]
[1717982602629,2.3962,3691.6,3691.0,35.68169669]
[1717982607418,2.3962,3691.6,3691.0,36.31569669]
[1717982614263,2.3962,3691.6,3691.2,0.634]
[1717982614568,2.3962,3691.6,3691.2,3.28430545]
[1717982615044,1.35441,3691.7,3691.2,3.28430545]
[1717982615244,1.35441,3691.7,3691.2,0.634]
[1717982617362,1.35441,3691.7,3691.0,2.67030669]
[1717982617560,0.02712844,3691.6,3691.3,35.0]
[1717982618057,1.35441,3691.7,3691.3,35.0]
[1717982618259,0.02707177,3691.5,3691.3,35.0]
[1717982618578,1.35441,3691.7,3691.3,35.0]
[1717982618877,0.02726671,3691.6,3691.3,35.0]
[1717982619078,1.35441,3691.7,3691.3,35.0]
[1717982621891,0.02726671,3691.6,3691.3,35.0]
[1717982622170,1.35441,3691.7,3691.3,35.0]
[1717982625490,0.02731796,3691.6,3691.3,35.0]
[1717982625688,1.35441,3691.7,3691.3,35.0]
[1717982625983,0.0272613,3691.5,3691.3,35.0]
[1717982626190,1.35441,3691.7,3691.3,35.0]
[1717982626555,0.02731796,3691.6,3691.3,35.0]
[1717982626903,1.35441,3691.7,3691.3,35.0]
[1717982627058,0.0272613,3691.5,3691.3,35.0]
[1717982627258,1.35441,3691.7,3691.3,35.0]
[1717982627458,0.02720463,3691.4,3691.3,35.0]
[1717982627663,3.40311155,3691.8,3691.3,35.0]
[1717982627862,1.13091155,3691.9,3691.4,0.634]
[1717982628254,1.13091155,3691.9,3691.3,1.81335556]
[1717982628419,1.13091155,3691.9,3691.2,4.30594]
[1717982628703,1.13091155,3691.9,3691.5,35.0]
[1717982633405,1.13091155,3691.9,3691.2,1.98854]
[1717982633781,1.13091155,3691.9,3691.3,35.0]
[1717982637296,2.3499,3691.8,3691.3,35.0]
[1717982640576,2.3499,3691.7,3691.3,35.0]
[1717982640990,3.48081155,3691.7,3691.3,35.0]
[1717982641204,0.02730896,3691.6,3691.3,35.0]
[1717982641416,2.4319,3691.5,3691.3,35.0]
[1717982641624,1.35449,3691.4,3690.5,1.9220542]
[1717982641805,1.35449,3691.4,3690.8,0.634]
[1717982641806,2.51259718,3691.4,3690.8,0.634]
[1717982642018,2.51259718,3691.4,3690.9,35.0]
[1717982642334,1.35449,3691.4,3690.9,35.0]
[1717982642702,0.02697396,3691.3,3690.9,35.0]
[1717982645895,1.35449,3691.4,3690.9,35.0]
[1717982645896,2.4579,3691.2,3690.9,35.0]
[1717982662845,2.4579,3691.2,3690.7,0.634]
[1717982663053,0.02683961,3691.1,3690.7,0.634]
[1717982663422,0.02683961,3691.1,3690.8,35.0]
[1717982663623,2.4579,3691.2,3690.8,35.0]
[1717982679961,2.4579,3691.2,3690.6,0.634]
[1717982680469,0.02622127,3691.1,3690.7,35.0]
[1717982680651,3.8125,3691.2,3690.7,35.0]
[1717982683561,3.8125,3691.2,3690.5,0.634]
[1717982684062,0.02526857,3691.1,3690.6,35.0]
[1717982684383,3.8125,3691.2,3690.6,35.0]
[1717982685354,4.94341155,3691.2,3690.6,35.0]
[1717982685685,0.02515755,3691.1,3690.6,35.0]
[1717982685983,3.8125,3691.2,3690.6,35.0]
[1717982686382,0.02515755,3691.1,3690.6,35.0]
[1717982686748,3.8125,3691.2,3690.6,35.0]
[1717982687162,0.02515755,3691.1,3690.6,35.0]
[1717982687456,3.8125,3691.2,3690.6,35.0]
[1717982687789,0.02515755,3691.1,3690.6,35.0]
[1717982688154,3.8125,3691.2,3690.6,35.0]
[1717982688555,0.02515755,3691.1,3690.6,35.0]
[1717982688957,3.8125,3691.2,3690.6,35.0]
[1717982689477,0.02515755,3691.1,3690.6,35.0]
[1717982689786,3.8125,3691.2,3690.6,35.0]
[1717982690087,0.02515755,3691.1,3690.6,35.0]
[1717982690304,3.8125,3691.2,3690.6,35.0]
[1717982690466,0.02515755,3691.1,3690.6,35.0]
[1717982690658,3.8125,3691.2,3690.6,35.0]
[1717982690852,0.02515755,3691.1,3690.6,35.0]
[1717982691063,3.8125,3691.2,3690.6,35.0]
[1717982691501,0.02515755,3691.1,3690.6,35.0]
[1717982691789,3.8125,3691.2,3690.6,35.0]
[1717982692183,0.02515755,3691.1,3690.6,35.0]
[1717982692493,3.8125,3691.2,3690.6,35.0]
[1717982692698,0.02515755,3691.1,3690.6,35.0]
[1717982692896,3.8125,3691.2,3690.6,35.0]
[1717982693070,0.02485755,3691.1,3690.6,35.0]
[1717982693391,3.8125,3691.2,3690.6,35.0]
[1717982693755,0.03058027,3691.1,3690.6,35.0]
[1717982694164,3.8125,3691.2,3690.6,35.0]
[1717982694592,0.02822794,3691.1,3690.6,35.0]
[1717982694959,3.8125,3691.2,3690.6,35.0]
[1717982695497,0.02820371,3691.1,3690.6,35.0]
[1717982695665,3.8125,3691.2,3690.6,35.0]
[1717982695993,0.02820371,3691.1,3690.6,35.0]
[1717982696385,3.8125,3691.2,3690.6,35.0]
[1717982696873,0.02618916,3691.1,3690.6,35.0]
[1717982697073,3.8125,3691.2,3690.6,35.0]
[1717982697485,0.02618916,3691.1,3690.6,35.0]
[1717982697697,3.8125,3691.2,3690.6,35.0]
[1717982697897,0.02820371,3691.1,3690.6,35.0]
[1717982698078,3.8125,3691.2,3690.6,35.0]
[1717982698493,0.02820371,3691.1,3690.6,35.0]
[1717982698700,1.35465,3691.0,3690.6,35.0]
[1717982698900,2.29821232,3690.9,3690.6,35.0]
[1717982701782,2.29821232,3690.9,3690.3,1.134]
[1717982702307,1.35472,3690.8,3690.4,35.0]
[1717982734228,0.05334954,3690.7,3690.4,35.0]
[1717982734630,1.35472,3690.8,3690.4,35.0]
[1717982735018,0.05334954,3690.7,3690.4,35.0]
[1717982735343,1.35472,3690.8,3690.4,35.0]
[1717982735752,1.35482,3690.6,3690.4,35.0]
[1717982735959,3.80062,3690.6,3690.4,35.0]
[1717982756003,1.35482,3690.6,3690.4,35.0]
[1717982776560,0.05241741,3690.5,3690.4,35.0]
[1717982777068,1.35482,3690.6,3690.4,35.0]